bitfinex-derivatives/quotes_SOLF0:USTF0_20260102
["timestamp","ask_amount","ask_price","bid_price","bid_amount"]
[1767348005846,0.05115324,129.52,129.49,0.05560219]
[1767348006049,95.20390128,129.56,129.49,3.87946578]
[1767348006356,3.90390128,129.56,129.49,3.87946578]
[1767348006848,10.85990128,129.55,129.49,3.87946578]
[1767348007139,0.0533493,129.53,129.51,0.05840813]
[1767348007343,3.90390128,129.57,129.51,0.05840813]
[1767348007545,3.90390128,129.57,129.5,3.82386359]
[1767348008141,3.90390128,129.57,129.51,3.82386359]
[1767348008338,0.05179349,129.55,129.53,0.0583688]
[1767348008646,3.90390128,129.61,129.53,3.88223239]
[1767348008849,3.90390128,129.61,129.53,3.82386359]
[1767348009149,3.90390128,129.61,129.55,3.82386359]
[1767348009747,0.04895171,129.59,129.57,0.04915312]
[1767348010940,0.04895171,129.59,129.53,3.82386359]
[1767348011145,3.95285299,129.59,129.53,3.82386359]
[1767348011439,0.04895171,129.59,129.55,1.48409067]
[1767348011746,3.90390128,129.61,129.55,1.48409067]
[1767348012046,3.90390128,129.61,129.54,3.82386359]
[1767348012348,0.05680634,129.59,129.54,3.82386359]
[1767348013140,3.96070762,129.59,129.51,3.82386359]
[1767348013347,0.05361846,129.56,129.51,3.82386359]
[1767348013549,10.91311974,129.56,129.48,5.30795426]
[1767348013749,10.85950128,129.56,129.49,3.82386359]
[1767348014148,3.90390128,129.56,129.5,5.30795426]
[1767348014448,6.9547,129.58,129.5,5.30795426]
[1767348014449,0.05900674,129.54,129.52,0.05346766]
[1767348015746,3.90390128,129.58,129.52,3.87733125]
[1767348015946,3.90390128,129.58,129.52,5.36142192]
[1767348016147,3.90390128,129.58,129.52,0.05346766]
[1767348016544,12.34239195,129.58,129.52,0.05346766]
[1767348016943,0.05556931,129.56,129.52,0.05346766]
[1767348018849,0.05556931,129.56,129.52,3.87733125]
[1767348020353,0.05556931,129.56,129.52,0.05346766]
[1767348023857,0.05556931,129.56,129.52,3.87733125]
[1767348025356,10.91487059,129.56,129.52,0.05346766]
[1767348025558,3.95947059,129.56,129.52,0.05346766]
[1767348026146,0.05556931,129.56,129.52,0.05346766]
[1767348028951,0.05556931,129.56,129.52,4.08086559]
[1767348029160,5.61258075,129.63,129.55,4.02739793]
[1767348029460,4.12849008,129.63,129.55,4.02739793]
[1767348030060,0.05356305,129.6,129.58,0.05400521]
[1767348030955,4.12849008,129.63,129.58,0.05400521]
[1767348032059,0.04966002,129.62,129.58,0.05400521]
[1767348032458,0.04966002,129.62,129.58,4.08140314]
[1767348032962,4.12849008,129.65,129.58,4.08140314]
[1767348032963,5.61258075,129.65,129.58,4.08140314]
[1767348033159,4.12849008,129.64,129.58,0.05400521]
[1767348033353,5.61258075,129.63,129.58,0.05400521]
[1767348033554,5.61258075,129.63,129.56,4.02739793]
[1767348033863,12.56418075,129.63,129.56,4.02739793]
[1767348034161,199.3154,129.66,129.58,4.07625833]
[1767348034162,4.12849008,129.65,129.58,4.07625833]
[1767348034363,5.61258075,129.64,129.58,4.02739793]
[1767348035059,0.0529246,129.62,129.6,0.05077504]
[1767348038473,3.76601017,129.62,129.56,35.656885]
[1767348039768,3.76601017,129.62,129.58,0.05843578]
[1767348039959,0.0529246,129.62,129.58,0.05843578]
[1767348041364,0.0529246,129.62,129.58,3.71532078]
[1767348041658,96.39717624,129.66,129.58,5.19941145]
[1767348041854,96.39717624,129.66,129.59,3.656885]
[1767348042461,94.91308557,129.66,129.59,3.656885]
[1767348042669,0.05077934,129.64,129.61,0.0521197]
[1767348043272,0.05077934,129.64,129.61,3.7090047]
[1767348043471,3.71308557,129.68,129.61,3.7090047]
[1767348043661,5.19717624,129.68,129.61,3.7090047]
[1767348044168,12.14617624,129.68,129.61,3.7090047]
[1767348044364,0.05176875,129.66,129.61,3.7090047]
[1767348045671,0.05176875,129.66,129.61,10.6616047]
[1767348045867,0.05176875,129.66,129.61,3.7090047]
[1767348047072,3.76485432,129.66,129.61,0.0521197]
[1767348047275,5.24894499,129.66,129.61,0.0521197]
[1767348047473,0.05176875,129.66,129.61,3.7090047]
[1767348048768,1.53585942,129.66,129.61,3.7090047]
[1767348050772,5.24894499,129.66,129.61,0.0521197]
[1767348050978,3.71308557,129.65,129.61,0.0521197]
[1767348051773,3.71308557,129.71,129.63,3.656885]
[1767348051977,1.48409067,129.68,129.63,3.656885]
[1767348052277,1.48409067,129.68,129.59,1.48409067]
[1767348052278,5.19717624,129.68,129.6,3.656885]
[1767348052976,0.04949881,129.65,129.63,0.05609412]
[1767348055873,3.71308557,129.68,129.63,0.05609412]
[1767348056180,5.19717624,129.68,129.63,0.05609412]
[1767348056879,3.76091949,129.67,129.63,0.05609412]
[1767348057073,5.24501016,129.67,129.63,0.05609412]
[1767348058577,1.48409067,129.66,129.57,32.0]
[1767348058767,5.24501016,129.63,129.55,3.76527106]
[1767348058967,5.24501016,129.63,129.54,33.48409067]
[1767348058968,3.76091949,129.65,129.57,3.76527106]
[1767348059273,12.19611016,129.64,129.57,3.76527106]
[1767348059670,0.05765029,129.62,129.59,0.05905828]
[1767348060476,6.9505,129.66,129.59,5.30842001]
[1767348060477,98.0905,129.66,129.59,5.30842001]
[1767348061176,6.9505,129.66,129.59,5.30842001]
[1767348062374,3.76091949,129.67,129.61,3.76527106]
[1767348062574,3.76091949,129.67,129.63,0.05733019]
[1767348062972,3.76091949,129.7,129.63,3.82260125]
[1767348063170,3.76091949,129.7,129.65,0.05288048]
[1767348064586,5.24501016,129.73,129.65,3.81815154]
[1767348064785,12.19261016,129.71,129.63,8.43559067]
[1767348064970,3.76091949,129.71,129.64,5.24936173]
[1767348065771,0.0543648,129.69,129.66,0.05665555]
[1767348066781,12.19121016,129.74,129.66,5.30601728]
[1767348066983,12.19121016,129.74,129.66,5.24936173]
[1767348067684,12.19121016,129.74,129.69,0.05778327]
[1767348067889,10.70711949,129.74,129.69,0.05778327]
[1767348068587,10.70731949,129.73,129.69,0.05778327]
[1767348069679,3.76091949,129.71,129.63,5.24936173]
[1767348069990,1.48409067,129.73,129.65,5.24936173]
[1767348069991,5.24501016,129.73,129.65,5.24936173]
[1767348070185,3.76091949,129.72,129.65,3.76527106]
[1767348070894,0.052713,129.7,129.67,0.04909383]
[1767348074996,10.70681949,129.74,129.67,3.81436489]
[1767348076095,3.76091949,129.74,129.68,3.76527106]
[1767348076397,3.76091949,129.74,129.7,0.04969816]
[1767348076599,10.70601949,129.76,129.7,0.04969816]
[1767348079293,6.944,129.78,129.71,3.76527106]
[1767348079499,6.944,129.78,129.73,0.05036125]
[1767348079799,3.76091949,129.77,129.73,0.05036125]
[1767348080394,10.70561949,129.76,129.68,3.76527106]
[1767348081398,0.05517033,129.73,129.71,0.05721504]
[1767348081999,0.05517033,129.73,129.68,3.76527106]
[1767348082199,3.81608982,129.73,129.66,3.76527106]
[1767348082697,3.81608982,129.73,129.63,2.31562109]
[1767348082698,3.76091949,129.71,129.63,10.71657106]
[1767348083202,0.05876483,129.68,129.66,0.05370625]
[1767348084114,3.76091949,129.73,129.66,0.05370625]
[1767348084397,91.08,129.74,129.66,3.76527106]
[1767348084803,91.08,129.74,129.66,10.71517106]
[1767348084804,101.78681949,129.74,129.66,10.71517106]
[1767348085199,0.04873128,129.71,129.69,0.05481175]
[1767348086212,0.04873128,129.71,129.66,3.76527106]
[1767348086907,4.00208196,129.71,129.64,11.02320773]
[1767348087106,4.00208196,129.71,129.66,0.05630502]
[1767348087907,0.04873128,129.71,129.66,0.05630502]
[1767348088710,0.04873128,129.71,129.66,11.07851275]
[1767348089498,0.04873128,129.71,129.66,4.12871275]
[1767348090513,0.04873128,129.71,129.66,11.07851275]
[1767348091608,0.04873128,129.71,129.67,4.07240773]
[1767348091909,0.04873128,129.71,129.66,0.05630502]
[1767348094922,0.04873128,129.71,129.66,11.07861275]
[1767348095217,0.04873128,129.71,129.66,4.12871275]
[1767348095529,0.04873128,129.71,129.66,0.05630502]
[1767348097325,0.04873128,129.71,129.66,4.12871275]
[1767348097513,3.95335068,129.76,129.66,4.12871275]
[1767348097718,91.08,129.78,129.68,4.07240773]
[1767348097719,3.95335068,129.78,129.68,4.07240773]
[1767348098022,3.95335068,129.78,129.69,4.07240773]
[1767348098616,0.05851641,129.75,129.72,0.05203633]
[1767348111433,0.05851641,129.75,129.72,4.12444406]
[1767348114429,98.0231,129.79,129.73,4.07240773]
[1767348114430,91.08,129.79,129.73,4.07240773]
[1767348114836,3.95335068,129.8,129.73,4.07240773]
[1767348115442,3.95335068,129.8,129.75,0.05095857]
[1767348117236,3.80689722,129.82,129.75,0.05095857]
[1767348117443,3.80689722,129.82,129.77,0.05167321]
[1767348117942,10.74839722,129.82,129.77,0.05167321]
[1767348118146,3.80689722,129.81,129.77,0.05167321]
[1767348118348,3.80689722,129.78,129.7,3.80022038]
[1767348119431,6.9442,129.77,129.7,3.80022038]
[1767348119637,0.05040179,129.75,129.73,0.05730458]
[1767348121147,0.05040179,129.75,129.69,6.9479]
[1767348121148,3.85729901,129.75,129.69,6.9479]
[1767348121448,3.85729901,129.75,129.68,3.80022038]
[1767348121648,3.80689722,129.75,129.68,3.80022038]
[1767348122244,0.04998508,129.73,129.7,0.05881087]
[1767348122951,3.8568823,129.73,129.66,3.80022038]
[1767348123951,3.8568823,129.73,129.68,0.05418762]
[1767348124253,0.04998508,129.73,129.68,0.05418762]
[1767348124455,0.04998508,129.73,129.68,3.854408]
[1767348124753,0.04998508,129.73,129.68,0.05418762]
[1767348125950,0.04998508,129.73,129.68,10.803208]
[1767348127448,0.04998508,129.73,129.69,10.74862038]
[1767348128452,3.80689722,129.77,129.7,10.74782038]
[1767348129548,0.05256906,129.75,129.72,0.0594417]
[1767348137254,3.80689722,129.73,129.66,3.80022038]
[1767348138460,0.05710045,129.71,129.68,0.05115571]
[1767348143061,3.80689722,129.75,129.69,3.80022038]
[1767348143758,5.28792236,129.74,129.66,44.23074552]
[1767348144159,0.05589683,129.71,129.69,0.05312693]
[1767348146066,0.05589683,129.71,129.66,35.80022038]
[1767348146663,0.05589683,129.71,129.66,42.75022038]
[1767348146868,0.05589683,129.71,129.67,3.95119353]
[1767348147161,1.48102514,129.75,129.68,3.8946619]
[1767348147862,91.08,129.76,129.68,3.8946619]
[1767348148162,5.41726632,129.78,129.7,3.94508069]
[1767348148359,3.93624118,129.77,129.7,3.8946619]
[1767348148565,3.93624118,129.77,129.71,10.8418619]
[1767348149165,0.05561836,129.75,129.73,0.05119112]
[1767348149368,0.05561836,129.75,129.71,10.8418619]
[1767348149369,0.05561836,129.75,129.69,5.37568704]
[1767348149557,0.05561836,129.75,129.69,3.8946619]
[1767348150160,0.05561836,129.75,129.69,10.8430619]
[1767348150358,0.05561836,129.75,129.71,0.05081606]
[1767348150667,12.36306632,129.74,129.67,10.8436619]
[1767348151371,5.41726632,129.74,129.68,6.9489]
[1767348151770,0.05231457,129.72,129.7,0.05497461]
[1767348152970,0.05231457,129.72,129.67,3.8946619]
[1767348153976,0.05231457,129.72,129.68,0.04918474]
[1767348154476,3.98855575,129.72,129.68,0.04918474]
[1767348154660,3.98855575,129.72,129.62,9.37334586]
[1767348154661,5.41726632,129.7,129.63,3.8946619]
[1767348155265,3.93624118,129.7,129.63,10.8459619]
[1767348155480,3.93624118,129.7,129.64,3.8946619]
[1767348155770,1.48102514,129.69,129.62,3.8946619]
[1767348156074,0.05804285,129.67,129.64,0.05612614]
[1767348156574,1.53906799,129.67,129.64,0.05612614]
[1767348156972,1.53906799,129.67,129.6,3.8946619]
[1767348157277,12.36676632,129.67,129.6,3.8946619]
[1767348157969,12.36676632,129.67,129.62,0.05114117]
[1767348158172,0.04963531,129.65,129.62,0.05114117]
[1767348159581,0.04963531,129.65,129.58,268.48452288]
[1767348159582,0.04963531,129.65,129.58,3.8946619]
[1767348160269,0.04963531,129.65,129.58,10.8489619]
[1767348160475,0.04963531,129.65,129.6,0.04897817]
[1767348160676,7.00023531,129.65,129.6,0.04897817]
[1767348160879,0.04963531,129.65,129.6,5.42466521]
[1767348161179,0.04963531,129.65,129.61,3.8946619]
[1767348161980,108.0489,129.74,129.62,3.8946619]
[1767348161981,1.48102514,129.7,129.62,3.8946619]
[1767348162579,8.42942514,129.7,129.62,3.8946619]
[1767348162983,8.42942514,129.7,129.65,0.05848159]
[1767348162984,0.05943213,129.67,129.65,0.05848159]
[1767348163585,0.05943213,129.67,129.62,3.8946619]
[1767348163978,3.93624118,129.66,129.59,10.8482619]
[1767348164178,3.93624118,129.66,129.56,108.1935]
[1767348164179,1.48102514,129.67,129.6,3.8946619]
[1767348164583,95.03624118,129.69,129.62,0.05411114]
[1767348164584,0.05943942,129.65,129.62,0.05411114]
[1767348168492,4.0945748,129.65,129.58,32.0]
[1767348168788,4.03513538,129.65,129.58,4.07564668]
[1767348169482,0.05083641,129.63,129.6,0.05611187]
[1767348171686,4.03513538,129.62,129.55,4.07564668]
[1767348171892,5.51616052,129.62,129.55,4.07564668]
[1767348172577,5.51616052,129.62,129.57,0.05558777]
[1767348172777,0.05003523,129.6,129.57,0.05558777]
[1767348173294,1.53106037,129.6,129.57,0.00509662]
[1767348174086,8.48446037,129.6,129.57,0.00509662]
[1767348175884,6.9538,129.59,129.57,0.00509662]
[1767348177179,0.05003523,129.6,129.57,0.00509662]
[1767348178077,7.00333523,129.6,129.57,0.00509662]
[1767348178277,0.05003523,129.6,129.57,0.00509662]
[1767348183796,0.05003523,129.6,129.57,3.88258421]
[1767348184095,5.45822592,129.65,129.58,3.87748759]
[1767348184486,3.97720078,129.65,129.59,5.35851273]
[1767348184886,0.05439484,129.63,129.61,0.04888823]
[1767348185193,0.05439484,129.63,129.57,37.35851273]
[1767348185397,0.05439484,129.63,129.57,3.87748759]
[1767348185592,5.51262076,129.63,129.57,3.87748759]
[1767348185987,5.51262076,129.63,129.56,6.9549]
[1767348186286,10.92940078,129.62,129.58,0.05294016]
[1767348186486,0.05410038,129.61,129.58,0.05294016]
[1767348186996,12.4650263,129.61,129.53,3.87748759]
[1767348187181,12.41092592,129.61,129.53,3.87748759]
[1767348187382,12.41092592,129.61,129.53,10.83398759]
[1767348188088,0.05074027,129.58,129.56,0.05086855]
[1767348191100,0.05074027,129.58,129.47,3.87748759]
[1767348191101,3.97720078,129.56,129.47,3.87748759]
[1767348191398,91.21074027,129.58,129.5,3.87748759]
[1767348191399,5.45822592,129.58,129.5,3.87748759]
[1767348192093,0.0542279,129.55,129.53,0.05145077]
[1767348195090,1.48102514,129.58,129.53,0.05145077]
[1767348195599,18.92050155,129.77,129.53,0.05145077]
[1767348195600,5.45822592,129.64,129.55,3.87748759]
[1767348195790,3.97720078,129.63,129.55,3.87748759]
[1767348196695,0.05626599,129.6,129.58,0.05888723]
[1767348200299,3.97720078,129.63,129.58,0.05888723]
[1767348200599,6.9514,129.64,129.58,0.05888723]
[1767348200791,10.92860078,129.64,129.58,0.05888723]
[1767348201190,6.9508,129.65,129.58,3.93637482]
[1767348201394,0.05007597,129.63,129.6,0.05852265]
[1767348202102,4.02727675,129.63,129.56,3.87748759]
[1767348202310,4.02727675,129.63,129.55,6.9557]
[1767348202606,3.97720078,129.63,129.55,42.83318759]
[1767348203205,0.05922594,129.6,129.58,0.05220459]
[1767348221325,4.03134227,129.6,129.51,43.72492054]
[1767348221528,3.97211633,129.6,129.52,3.78703608]
[1767348222429,0.05182121,129.57,129.55,0.05897237]
[1767348223027,4.02393754,129.57,129.49,3.78703608]
[1767348223327,2.31887065,129.6,129.52,3.78703608]
[1767348223532,122.0356,129.64,129.52,3.78703608]
[1767348223533,3.97211633,129.61,129.52,3.78703608]
[1767348224236,0.05842445,129.58,129.55,0.04952623]
[1767348227134,4.03054078,129.58,129.5,3.78703608]
[1767348227434,3.97211633,129.6,129.53,3.78703608]
[1767348228036,6.29098698,129.58,129.51,3.78703608]
[1767348228239,0.05110958,129.56,129.51,3.78703608]
[1767348228428,0.05110958,129.56,129.46,233.77487065]
[1767348228633,0.05662172,129.52,129.47,3.78703608]
[1767348228935,4.02873805,129.52,129.45,3.78703608]
[1767348229138,0.05208933,129.5,129.45,3.78703608]
[1767348229941,0.05208933,129.5,129.46,3.78703608]
[1767348234040,0.05208933,129.5,129.43,20.33491178]
[1767348235246,0.05208933,129.5,129.44,3.78703608]
[1767348235747,0.05208933,129.5,129.44,10.74873608]
[1767348235944,0.05208933,129.5,129.45,3.82311573]
[1767348236836,0.05208933,129.5,129.45,10.78441573]
[1767348239240,0.05208933,129.5,129.45,3.82311573]
[1767348240343,4.11934386,129.5,129.43,52.37099143]
[1767348240545,11.07814386,129.5,129.43,45.40909143]
[1767348241043,0.05208933,129.5,129.44,3.82311573]
[1767348241237,0.05208933,129.5,129.46,3.82311573]
[1767348242444,0.05208933,129.5,129.44,35.82311573]
[1767348242649,4.11934386,129.5,129.44,35.82311573]
[1767348243752,11.07804386,129.5,129.44,35.82311573]
[1767348244342,0.05208933,129.5,129.44,35.82311573]
[1767348246348,11.07814386,129.5,129.44,35.82311573]
[1767348246543,4.11934386,129.5,129.43,9.5859757]
[1767348247849,11.02655453,129.49,129.43,9.5859757]
[1767348248054,0.05322353,129.47,129.43,9.5859757]
[1767348249651,4.12047806,129.47,129.43,9.5859757]
[1767348253266,4.06725453,129.52,129.44,3.82311573]
[1767348253474,4.06725453,129.54,129.45,3.82311573]
[1767348254062,6.9575,129.53,129.46,3.82311573]
[1767348254262,0.04937589,129.51,129.48,0.05660559]
[1767348255478,102.26355453,129.55,129.48,3.87972132]
[1767348256072,11.02385453,129.54,129.48,3.87972132]
[1767348256380,0.05416556,129.52,129.48,3.87972132]
[1767348259173,0.05416556,129.52,129.48,0.05660559]
[1767348259374,4.06725453,129.51,129.48,0.0060827]
[1767348261079,7.01176556,129.52,129.48,0.0060827]
[1767348261972,0.05416556,129.52,129.48,0.0060827]
[1767348262979,0.05416556,129.52,129.48,3.82919843]
[1767348263176,0.05416556,129.52,129.48,5.31516099]
[1767348264783,0.05416556,129.52,129.48,12.27486099]
[1767348265283,0.05416556,129.52,129.48,3.82919843]
[1767348274594,0.05416556,129.52,129.48,0.0060827]
[1767348274900,4.00367014,129.52,129.48,0.0060827]
[1767348275191,10.96137014,129.52,129.48,0.0060827]
[1767348277095,6.9583,129.51,129.48,0.0060827]
[1767348282291,8.44426256,129.51,129.48,0.0060827]
[1767348285000,12.39376714,129.51,129.48,0.0060827]
[1767348285502,6.9587,129.5,129.48,0.0060827]
[1767348286200,10.90820458,129.5,129.44,10.8581844]
[1767348286502,5.43546714,129.49,129.43,13.4828601]
[1767348286895,10.90870458,129.49,129.43,20.4450601]
[1767348287296,0.05542927,129.47,129.45,0.05563173]
[1767348294300,12.39396714,129.51,129.45,0.05563173]
[1767348295204,0.05591991,129.49,129.45,0.05563173]
[1767348297505,0.05591991,129.49,129.45,10.90389401]
[1767348297706,3.92334146,129.54,129.47,3.88696228]
[1767348298401,10.88004146,129.54,129.47,3.88696228]
[1767348298807,0.0574626,129.52,129.49,0.05440573]
[1767348299000,0.0574626,129.52,129.49,3.94136801]
[1767348300707,10.87844146,129.57,129.51,3.88696228]
[1767348301706,0.05154865,129.55,129.53,0.05125216]
[1767348302105,3.92334146,129.6,129.54,3.88696228]
[1767348302408,6.953,129.61,129.54,3.88696228]
[1767348302706,3.92334146,129.62,129.54,3.88696228]
[1767348302910,145.1851,129.66,129.54,3.88696228]
[1767348302911,3.92334146,129.65,129.57,3.88696228]
[1767348303101,0.04875933,129.62,129.6,0.05563719]
[1767348303306,1.53472189,129.62,129.55,3.88696228]
[1767348303507,5.45806335,129.62,129.55,3.88696228]
[1767348304308,5.45806335,129.62,129.57,0.04971063]
[1767348306102,3.92334146,129.61,129.57,0.04971063]
[1767348308325,5.40930402,129.58,129.51,3.88696228]
[1767348308607,1.48596256,129.58,129.51,1.48596256]
[1767348308814,91.22,129.59,129.52,3.88696228]
[1767348309109,12.36270402,129.6,129.52,10.84436228]
[1767348309310,0.04964284,129.57,129.55,0.04932501]
[1767348310810,10.87534146,129.63,129.55,3.93628729]
[1767348311014,10.87534146,129.63,129.55,3.88696228]
[1767348311315,12.36130402,129.63,129.56,3.88696228]
[1767348311905,0.05623518,129.61,129.58,0.05061607]
[1767348313304,1.54219774,129.61,129.56,3.88696228]
[1767348314005,1.54219774,129.61,129.53,32.0]
[1767348314212,5.40930402,129.61,129.54,3.88696228]
[1767348314410,0.04891842,129.59,129.56,0.05048703]
[1767348318029,6.9515,129.64,129.57,3.88696228]
[1767348318825,3.92334146,129.65,129.59,3.88696228]
[1767348319027,0.05480937,129.63,129.61,0.05866918]
[1767348323342,10.87174146,129.69,129.62,3.88696228]
[1767348323633,3.92334146,129.69,129.62,3.88696228]
[1767348324028,3.92334146,129.69,129.63,10.83856228]
[1767348324429,0.05305102,129.67,129.65,0.05092561]
[1767348325228,0.05305102,129.67,129.59,32.0]
[1767348325532,4.04565891,129.66,129.59,3.82255239]
[1767348326234,10.99585891,129.66,129.59,3.82255239]
[1767348326533,0.05270298,129.64,129.61,0.05917129]
[1767348329124,95.18129575,129.69,129.61,4.20005788]
[1767348329329,95.18129575,129.69,129.61,4.14088659]
[1767348329632,4.02129575,129.69,129.61,4.14088659]
[1767348330020,0.05301519,129.66,129.64,0.05672314]
[1767348331032,4.02129575,129.69,129.64,0.05672314]
[1767348332123,0.04918597,129.68,129.64,0.05672314]
[1767348334531,4.07048172,129.68,129.64,0.05672314]
[1767348334732,4.02129575,129.67,129.61,32.0]
[1767348334933,4.02129575,129.67,129.59,4.14088659]
[1767348335638,4.02129575,129.71,129.63,4.14088659]
[1767348335838,4.02129575,129.7,129.63,4.14088659]
[1767348336038,4.02129575,129.7,129.63,11.09248659]
[1767348336436,6.9473,129.72,129.63,4.14088659]
[1767348336638,10.96859575,129.72,129.63,4.14088659]
[1767348336936,0.04937345,129.69,129.66,0.05467897]
[1767348338231,0.04937345,129.69,129.63,4.14088659]
[1767348338535,4.0706692,129.69,129.61,95.30088659]
[1767348338732,4.02129575,129.69,129.61,95.30088659]
[1767348339334,0.05456345,129.66,129.64,0.05405211]
[1767348343737,4.0758592,129.66,129.59,91.14]
[1767348343936,4.0758592,129.66,129.58,4.14088659]
[1767348344230,4.02129575,129.66,129.58,4.14088659]
[1767348344438,4.02129575,129.66,129.59,4.14088659]
[1767348344638,0.04999488,129.64,129.61,0.05673992]
[1767348346946,0.04999488,129.64,129.57,102.23568659]
[1767348347343,4.07129063,129.64,129.57,11.09568659]
[1767348347542,4.07129063,129.64,129.57,4.14088659]
[1767348347941,4.07129063,129.64,129.59,0.05476644]
[1767348348644,11.02239063,129.64,129.59,0.05476644]
[1767348350244,6.9523,129.62,129.59,0.05476644]
[1767348350445,4.02129575,129.62,129.59,0.00673554]
[1767348351147,0.04999488,129.64,129.59,4.14762213]
[1767348358256,4.1712475,129.64,129.59,0.00673554]
[1767348361354,11.1223475,129.64,129.59,0.00673554]
[1767348363956,6.9518,129.63,129.59,0.00673554]
[1767348364159,4.12125262,129.62,129.59,0.00673554]
[1767348364349,4.12125262,129.62,129.55,3.74257583]
[1767348364657,6.9528,129.61,129.55,3.74257583]
[1767348365261,0.05427769,129.59,129.57,0.05157822]
[1767348372762,0.05427769,129.59,129.55,3.74257583]
[1767348373768,0.05427769,129.59,129.56,0.05510318]
[1767348376565,0.05427769,129.59,129.56,3.79767901]
[1767348376766,0.05427769,129.59,129.56,0.05510318]
[1767348382679,4.17553031,129.59,129.56,0.05510318]
[1767348383570,5.60571342,129.58,129.52,3.74257583]
[1767348383772,4.12125262,129.57,129.52,3.74257583]
[1767348384672,0.05740353,129.56,129.52,3.74257583]
[1767348386469,0.05740353,129.56,129.5,10.94398143]
[1767348386676,5.32276625,129.56,129.5,3.98588143]
[1767348390276,3.78090192,129.55,129.49,10.94488143]
[1767348390476,0.05470185,129.53,129.49,10.94488143]
[1767348391082,0.05470185,129.53,129.49,3.98588143]
[1767348391984,0.05470185,129.53,129.47,10.94598143]
[1767348392276,0.05470185,129.53,129.48,3.98588143]
[1767348392787,0.05470185,129.53,129.48,5.47034223]
[1767348392987,0.05470185,129.53,129.49,3.98588143]
[1767348397694,3.78090192,129.6,129.53,3.98588143]
[1767348397890,3.78090192,129.62,129.55,3.98588143]
[1767348398588,0.05559688,129.6,129.57,0.05018351]
[1767348409501,145.1989,129.67,129.57,0.05018351]
[1767348409502,23.19,129.72,129.58,1.54]
[1767348409802,3.78090192,129.74,129.67,1.4844608]
[1767348410011,3.78090192,129.74,129.67,78.75034223]
[1767348410208,10.72700192,129.74,129.67,78.75034223]
[1767348410393,10.72700192,129.74,129.67,3.98588143]
[1767348410593,0.05827675,129.72,129.69,0.05026566]
[1767348410797,3.83917867,129.72,129.69,0.05026566]
[1767348412009,3.83917867,129.72,129.65,1.4844608]
[1767348412211,3.78090192,129.7,129.62,3.98588143]
[1767348412407,3.78090192,129.7,129.62,95.16588143]
[1767348412901,3.78090192,129.7,129.65,0.05608862]
[1767348413107,0.05705778,129.67,129.65,0.05608862]
[1767348414403,0.05705778,129.67,129.62,3.98588143]
[1767348416410,1.4844608,129.76,129.67,4.2877359]
[1767348416613,1.4844608,129.76,129.68,11.14150863]
[1767348416810,1.4844608,129.76,129.69,9.65704783]
[1767348417010,1.4844608,129.76,129.7,9.65704783]
[1767348417205,108.0181,129.78,129.71,9.65704783]
[1767348417206,8.4288608,129.77,129.71,9.65704783]
[1767348417406,91.16,129.8,129.72,13.99918353]
[1767348417621,1.4844608,129.8,129.72,5.7721967]
[1767348417821,1.4844608,129.79,129.72,4.2877359]
[1767348418316,5.18394491,129.8,129.72,4.2877359]
[1767348418510,3.69948411,129.78,129.68,4.2877359]
[1767348418717,3.69948411,129.78,129.69,95.4477359]
[1767348418906,0.05328397,129.74,129.72,0.0550122]
[1767348419509,0.05328397,129.74,129.72,0.00581841]
[1767348420901,5.29276808,129.74,129.66,91.14]
[1767348421102,3.69948411,129.74,129.65,95.4277359]
[1767348422008,0.05904235,129.71,129.68,0.05397643]
[1767348422711,6.9448,129.76,129.68,4.34171233]
[1767348423015,6.9448,129.76,129.68,4.2877359]
[1767348423207,3.75852646,129.76,129.68,4.2877359]
[1767348423817,0.05492615,129.73,129.71,0.05475124]
[1767348431112,3.75852646,129.78,129.71,4.34248714]
[1767348431714,10.70222646,129.78,129.71,4.34248714]
[1767348432316,0.05670098,129.76,129.71,4.34248714]
[1767348433230,6.9408,129.84,129.74,6.9456]
[1767348433526,3.87015359,129.85,129.75,4.2877359]
[1767348433724,3.87015359,129.88,129.77,4.2877359]
[1767348433921,3.87015359,129.88,129.79,4.2877359]
[1767348434118,3.87015359,129.88,129.82,0.04986]
[1767348434324,114.29,129.91,129.82,4.3375959]
[1767348434531,3.9271986,129.93,129.82,4.2877359]
[1767348434729,6.9346,129.95,129.83,4.2877359]
[1767348434916,95.0271986,129.96,129.85,4.2877359]
[1767348435231,107.8572,129.97,129.85,4.2877359]
[1767348435525,7.73,130.06,129.87,4.2877359]
[1767348435714,4.2494689,130.07,129.94,107.8758]
[1767348435933,4.2494689,130.06,129.94,91.1]
[1767348436121,4.2494689,130.06,129.94,107.8768]
[1767348436316,4.2494689,130.06,129.93,114.8203]
[1767348436521,3.96653045,130.05,129.99,0.05053423]
[1767348436729,4.2494689,130.06,129.99,0.05053423]
[1767348437122,4.2494689,130.03,129.92,107.8896]
[1767348437425,4.2494689,130.03,129.91,107.9006]
[1767348437617,4.2494689,130.03,129.91,198.9606]
[1767348437819,95.3094689,130.06,129.92,107.8926]
[1767348438025,95.3094689,130.06,129.93,107.885]
[1767348438326,0.05661767,130.01,129.98,0.05029087]
[1767348438532,4.2494689,130.06,129.93,107.8827]